bitfinex/quotes_ETHUSD_20240819
["timestamp","ask_amount","ask_price","bid_price","bid_amount"]
[1724036649003,1.0,2647.3,2647.2,18.43196308]
[1724036649513,1.0,2647.3,2647.2,16.46115819]
[1724036650862,1.0,2647.3,2647.2,16.46111277]
[1724036651888,1.0,2647.3,2647.2,13.26681277]
[1724036652102,1.0,2647.3,2647.2,11.95296581]
[1724036652779,1.0,2647.3,2647.2,17.88180258]
[1724036653114,1.0,2647.3,2647.2,21.43180258]
[1724036653347,1.0,2647.3,2647.2,22.21725271]
[1724036653515,1.0,2647.3,2647.2,21.43180258]
[1724036654016,1.0,2647.3,2647.2,18.78750258]
[1724036654514,1.0,2647.3,2647.2,16.81678052]
[1724036655307,1.0,2647.3,2647.2,16.81680608]
[1724036655515,1.0,2647.3,2647.2,16.26680608]
[1724036655812,1.0,2647.3,2647.2,14.95296581]
[1724036656503,0.21169229,2647.3,2647.2,19.461112]
[1724036657471,0.21169229,2647.3,2647.2,21.43180569]
[1724036657670,0.21169229,2647.3,2647.2,19.461112]
[1724036658167,0.21169229,2647.3,2647.2,16.816812]
[1724036658389,0.21169229,2647.3,2647.2,19.461112]
[1724036658692,0.21169229,2647.3,2647.2,15.50296581]
[1724036659115,0.21169229,2647.3,2647.2,18.14726581]
[1724036659317,0.21169229,2647.3,2647.2,19.46110334]
[1724036659519,0.21169229,2647.3,2647.2,15.50296581]
[1724036659734,0.21169229,2647.3,2647.2,16.81677834]
[1724036659930,0.21169229,2647.3,2647.2,16.81676751]
[1724036660308,0.21169229,2647.3,2647.2,19.46106751]
[1724036660527,0.21169229,2647.3,2647.2,21.43171949]
[1724036660701,0.21169229,2647.3,2647.2,22.21716962]
[1724036661036,0.21169229,2647.3,2647.2,21.43171949]
[1724036661404,0.21169229,2647.3,2647.2,19.46106751]
[1724036662035,0.21169229,2647.3,2647.2,21.43172871]
[1724036662449,0.21169229,2647.3,2647.2,19.46106751]
[1724036662959,0.21169229,2647.3,2647.2,21.43173269]
[1724036664244,0.21169229,2647.3,2647.2,21.43164359]
[1724036664943,0.21169229,2647.3,2647.2,19.46101692]
[1724036665346,0.21169229,2647.3,2647.2,14.29626581]
[1724036665961,0.21169229,2647.3,2647.2,15.61006596]
[1724036666253,0.21169229,2647.3,2647.2,17.58071664]
[1724036666562,9.27809112,2648.6,2648.1,2.64337]
[1724036666761,2.2904,2648.6,2648.1,2.64337]
[1724036668449,2.2904,2648.6,2648.1,5.28671]
[1724036668634,2.2904,2648.6,2648.1,2.64334]
[1724036668801,0.493321,2648.5,2648.1,2.64334]
[1724036669005,0.47443348,2648.5,2648.1,2.64334]
[1724036669602,0.47443348,2648.5,2647.9,2.64352]
[1724036670417,3.11749348,2648.5,2647.9,4.24752]
[1724036670618,2.63284935,2648.4,2647.9,4.24752]
[1724036672053,2.63284935,2648.4,2647.9,1.604]
[1724036673391,2.63284935,2648.4,2647.9,4.24758]
[1724036673731,2.63284935,2648.4,2647.9,6.89111]
[1724036674858,2.63284935,2648.4,2647.7,2.64376]
[1724036675020,2.3211,2648.1,2647.2,3.0]
[1724036675237,2.3211,2647.8,2647.3,1.604]
[1724036676051,4.96481,2647.8,2647.3,1.604]
[1724036676205,4.96481,2647.8,2647.1,2.64432]
[1724036676416,2.3211,2647.8,2647.4,2.64409]
[1724036676645,2.3211,2647.8,2647.5,1.604]
[1724036676846,2.3211,2647.8,2647.5,4.248]
[1724036677621,6.98769112,2648.2,2647.6,2.6439]
[1724036677959,6.98769112,2648.2,2647.9,4.24753]
[1724036678171,2.3211,2648.3,2647.9,4.24753]
[1724036678882,2.64291,2648.6,2647.9,4.24753]
[1724036678883,2.3211,2648.6,2648.1,2.64339]
[1724036685463,2.3211,2648.6,2648.1,5.28673]
[1724036685767,2.3211,2648.6,2648.1,2.64334]
[1724036685966,2.3211,2648.6,2648.1,5.28667]
[1724036686168,2.3211,2648.6,2648.2,2.64329]
[1724036686580,2.3211,2648.6,2648.1,3.1236184]
[1724036686758,13.87725112,2648.8,2648.1,3.1236184]
[1724036686967,11.23447112,2648.8,2648.2,2.64328]
[1724036687378,14.54310483,2648.8,2648.1,3.1236184]
[1724036687606,2.64283,2648.7,2648.1,2.64333]
[1724036688089,12.93910483,2648.8,2648.1,2.64333]
[1724036688441,12.93910483,2648.8,2648.3,2.64318]
[1724036688442,9.63047112,2648.8,2648.3,2.64318]
[1724036689283,9.63047112,2648.8,2648.1,2.64333]
[1724036689481,9.63047112,2648.8,2648.2,2.64321]
[1724036690353,6.98769112,2648.8,2648.3,2.64317]
[1724036690548,6.98769112,2648.8,2648.2,0.56571537]
[1724036690762,6.98769112,2648.8,2648.7,6.8896]
[1724036690977,19.71,2649.0,2648.9,2.6426]
[1724036693066,0.1281711,2649.2,2648.9,2.6426]
[1724036693393,0.1281711,2649.2,2648.8,2.2837]
[1724036693394,0.1281711,2649.2,2649.1,6.8888]
[1724036693764,0.1281711,2649.2,2649.1,9.2933]
[1724036694358,0.1281711,2649.2,2649.1,9.8433]
[1724036695083,0.1281711,2649.2,2649.1,5.0469]
[1724036695284,0.1281711,2649.2,2649.1,2.6424]
[1724036695474,0.1281711,2649.2,2648.9,2.64252]
[1724036696323,0.1281711,2649.2,2648.8,2.4045]
[1724036697714,0.1281711,2649.2,2648.7,2.64273]
[1724036698432,0.1281711,2649.2,2648.7,2.64272]
[1724036698901,2.7705411,2649.2,2648.6,2.3792]
[1724036699434,0.1281711,2649.2,2648.6,2.881416]
[1724036699662,0.1281711,2649.2,2648.9,2.64259]
[1724036699788,0.1281711,2649.2,2648.7,5.28545]
[1724036699987,0.1281711,2649.2,2648.7,2.64271]
[1724036700429,0.1281711,2649.2,2648.6,2.3792]
[1724036700612,2.4874,2649.1,2648.4,2.64309]
[1724036700933,2.6425,2649.0,2648.4,2.64309]
[1724036701115,2.64256,2649.0,2648.3,5.04026]
[1724036702006,2.64256,2649.0,2648.3,5.04023]
[1724036702327,5.28515,2649.0,2648.3,5.04023]
[1724036702740,2.64256,2649.0,2648.3,5.04023]
[1724036702906,5.28514,2649.0,2648.3,5.04023]
[1724036703233,2.64256,2649.0,2648.3,5.04023]
[1724036703432,2.7705111,2649.2,2648.5,2.64297]
[1724036703853,0.1281711,2649.2,2648.7,4.9726]
[1724036704055,0.1281711,2649.2,2648.8,2.64264]
[1724036704258,0.1281711,2649.2,2648.7,7.61533]
[1724036704441,0.1281711,2649.2,2648.8,0.49726]
[1724036705330,0.1281711,2649.2,2648.9,2.64259]
[1724036705537,0.1281711,2649.2,2648.8,0.49726]
[1724036706357,0.1281711,2649.2,2648.9,2.64259]
[1724036706552,0.1281711,2649.2,2648.8,0.49726]
[1724036706754,0.1281711,2649.2,2648.7,4.97252]
[1724036706950,0.1281711,2649.2,2648.8,2.6427]
[1724036707577,0.1281711,2649.2,2648.7,4.97252]
[1724036708980,0.1281711,2649.2,2648.6,2.64287]
[1724036709181,0.1281711,2649.2,2648.5,4.89996]
[1724036709332,4.89447,2649.1,2648.3,7.90015]
[1724036709677,4.89447,2649.1,2648.4,2.64309]
[1724036710280,4.89447,2649.1,2648.5,2.64299]
[1724036710650,2.64251,2649.0,2648.4,2.64308]
[1724036710833,2.252,2649.1,2648.3,2.257]
[1724036711062,4.89445,2649.1,2648.3,2.257]
[1724036711335,2.6427,2648.9,2648.3,2.257]
[1724036712074,5.28539,2648.9,2648.3,2.257]
[1724036712373,2.64269,2648.9,2648.3,2.257]
[1724036712728,2.64269,2648.9,2648.3,4.90019]
[1724036712932,2.64246,2649.1,2648.5,2.64297]
[1724036713138,2.64246,2649.1,2648.6,0.264297]
[1724036713445,7.11586222,2649.2,2648.6,2.64287]
[1724036713646,7.11586222,2649.2,2648.7,2.2865]
[1724036713972,7.11586222,2649.2,2648.6,2.64287]
[1724036714550,2.64241,2649.1,2648.6,2.64287]
[1724036715677,2.64241,2649.1,2648.5,2.3493]
[1724036715847,5.28489,2649.1,2648.5,2.3493]
[1724036716050,2.3367,2649.1,2648.3,2.3493]
[1724036716280,1.24007522,2649.0,2648.3,2.3493]
[1724036716450,2.64258,2649.0,2648.3,4.99249]
[1724036716775,2.64271,2648.8,2648.3,4.99249]
[1724036716959,2.64271,2648.8,2648.3,2.3493]
[1724036717276,3.848,2649.0,2648.1,2.3493]
[1724036717431,3.848,2649.0,2647.8,2.64366]
[1724036717432,2.64318,2648.4,2647.8,2.3493]
[1724036717632,2.64318,2648.4,2647.8,4.99298]
[1724036717834,4.97979,2648.5,2647.8,4.99298]
[1724036718187,4.97978,2648.5,2647.9,0.499298]
[1724036718554,4.97978,2648.5,2647.8,4.99298]
[1724036719049,4.97978,2648.5,2647.6,2.64387]
[1724036719050,2.64336,2648.2,2647.6,4.99313]
[1724036719248,2.64341,2648.1,2647.6,4.99313]
[1724036719510,2.64341,2648.1,2647.6,2.3493]
[1724036720556,2.64321,2648.3,2647.2,2.64425]
[1724036720557,2.64376,2647.8,2647.3,2.3566]
[1724036720755,2.64376,2647.8,2647.3,2.856683]
[1724036721181,5.06777,2648.0,2647.3,5.500873]
[1724036721396,2.64371,2647.8,2647.3,5.500873]
[1724036721580,2.64371,2647.8,2647.1,5.00092]
[1724036721755,2.64371,2647.8,2647.1,7.64524]
[1724036721948,2.64381,2647.7,2647.1,5.00092]
[1724036722149,2.64381,2647.7,2647.1,2.3566]
[1724036722412,2.64381,2647.7,2646.9,2.64456]
[1724036722413,2.64408,2647.5,2646.9,2.64456]
[1724036722638,2.908181,2647.7,2646.9,2.64456]
[1724036722823,2.6438,2647.7,2646.9,2.64456]
[1724036723890,2.6439,2647.6,2647.1,2.64433]
[1724036724090,2.644,2647.5,2646.9,2.64456]
[1724036724500,2.644,2647.5,2646.8,2.3566]
[1724036724931,2.4242,2647.8,2646.8,2.4655]
[1724036725091,4.94582,2648.1,2647.4,5.10952]
[1724036725293,4.94582,2648.1,2647.4,2.4655]
[1724036725532,2.64361,2647.9,2647.2,7.754]
[1724036725753,2.64361,2647.9,2647.3,2.64418]
[1724036726443,2.64364,2647.9,2647.3,2.64418]
[1724036726919,2.6437,2647.8,2647.2,2.4655]
[1724036727123,2.6438,2647.7,2647.1,2.64433]
[1724036727320,2.6438,2647.7,2647.0,2.3809]
[1724036727321,4.959,2647.7,2647.0,2.3809]
[1724036727527,4.959,2647.7,2646.9,2.64458]
[1724036728206,2.64406,2647.5,2646.9,2.64458]
[1724036729120,2.64217239,2647.5,2646.9,2.64458]
[1724036730815,2.64411,2647.4,2646.8,2.3809]
[1724036731508,2.6442,2647.3,2646.7,2.64474]
[1724036731750,2.6442,2647.3,2646.5,8.12006]
[1724036731751,5.57504896,2647.3,2646.6,2.6449]
[1724036731898,0.09981297,2647.2,2646.7,2.6448]
[1724036733051,0.09981297,2647.2,2646.5,2.64493]
[1724036733256,9.31389112,2647.7,2647.1,2.6444]
[1724036733589,6.98769112,2647.7,2647.3,2.6442]
[1724036733695,3.20238911,2647.7,2647.3,2.6442]
[1724036733920,22.3536,2647.9,2647.3,2.6442]
[1724036735420,0.09673134,2647.8,2647.3,2.6442]
[1724036738085,0.09673134,2647.8,2647.4,2.64409]
[1724036738315,0.09673134,2647.8,2647.3,2.6442]
[1724036738442,7.96976,2648.0,2647.3,5.28833]
[1724036738791,0.09675269,2647.9,2647.3,5.28833]
[1724036738935,0.09675269,2647.9,2647.3,2.64413]
[1724036739284,2.74036269,2647.9,2647.3,2.64413]
[1724036739768,2.6437,2647.8,2647.1,5.11943]
[1724036739975,3.62636508,2647.8,2647.1,2.64433]
[1724036740132,0.09661273,2647.7,2647.1,2.64433]
[1724036740333,2.74048273,2647.7,2647.0,2.6444]
[1724036740529,3.37714151,2647.7,2647.1,2.6444]
[1724036740734,5.38436273,2647.7,2647.1,2.6444]
[1724036741160,2.74048273,2647.7,2647.1,2.6444]
[1724036741365,2.74048273,2647.7,2647.2,2.64428]
[1724036741674,0.09661273,2647.7,2647.3,2.64413]
[1724036741875,0.09661273,2647.7,2647.3,4.90623]
[1724036742085,5.3262,2648.0,2647.3,4.90623]
[1724036742286,0.09653581,2647.6,2647.3,4.90623]
[1724036742583,5.3262,2648.0,2647.4,2.64409]
[1724036742779,0.09646504,2647.5,2647.4,2.64409]
[1724036742984,2.64361,2647.9,2647.3,4.90623]
[1724036743603,0.09669272,2647.8,2647.3,4.90623]
[1724036743954,0.09669272,2647.8,2647.3,7.55036]
[1724036744476,0.09669272,2647.8,2647.3,4.90623]
[1724036744861,0.09669272,2647.8,2647.4,2.64408]
[1724036745063,0.09669272,2647.8,2647.5,2.64399]
[1724036745256,2.3262,2648.0,2647.5,2.64399]
[1724036745491,0.0965546,2647.9,2647.5,2.64399]
[1724036745653,0.0965546,2647.9,2647.7,2.64378]
[1724036745986,6.98769112,2648.2,2647.7,2.64378]
[1724036746138,0.09648385,2647.8,2647.7,2.64378]
[1724036746489,0.09645709,2647.8,2647.3,7.55039]
[1724036746692,0.09645709,2647.8,2647.4,2.64406]
[1724036747029,2.64348,2648.1,2647.5,2.64399]
[1724036747153,0.09642182,2647.7,2647.5,2.64399]
[1724036747354,2.64348,2648.1,2647.5,2.64393]
[1724036747681,4.09962211,2648.1,2647.5,2.64393]
[1724036747862,0.09663409,2648.0,2647.5,5.28786]
[1724036748277,0.09663409,2648.0,2647.5,2.64393]
[1724036748631,0.09663409,2648.0,2647.5,5.28786]
[1724036748791,0.09663409,2648.0,2647.5,2.64393]
[1724036749089,0.09663409,2648.0,2647.5,5.28786]
[1724036749386,0.09663409,2648.0,2647.5,2.64393]
[1724036750258,0.09663409,2648.0,2647.3,4.90625]
[1724036750259,4.93498,2647.9,2647.3,2.64413]
[1724036750460,0.09652039,2647.8,2647.3,2.64413]
[1724036751177,2.6438,2647.7,2647.1,2.64437]
[1724036751702,2.2938,2647.5,2646.9,5.28906]
[1724036752189,0.09649402,2647.4,2647.0,2.64447]
[1724036753757,0.09649402,2647.4,2647.0,3.153557]
[1724036753897,0.09649402,2647.4,2647.3,2.6442]
[1724036754210,5.11446,2648.0,2647.3,2.6442]
[1724036754821,5.11446,2648.0,2647.4,2.64406]
[1724036755113,0.09646831,2647.9,2647.4,5.28808]
[1724036755512,0.09646831,2647.9,2647.4,2.64402]
[1724036757068,2.74007831,2647.9,2647.2,2.64422]
[1724036757294,2.74007831,2647.9,2647.2,3.0401744]
[1724036757808,2.74007831,2647.9,2647.3,2.64418]
[1724036758107,2.74007831,2647.9,2647.2,5.6844044]
[1724036758414,2.74007831,2647.9,2647.2,3.0401744]
[1724036758812,2.74007831,2647.9,2647.3,2.64419]
[1724036759117,0.09646831,2647.9,2647.3,2.64419]
[1724036760399,2.74010831,2647.9,2647.3,2.64419]
[1724036760597,2.74010831,2647.9,2647.2,3.0401744]
[1724036760907,2.341,2647.7,2647.0,2.64442]
[1724036761110,2.341,2647.7,2647.1,2.64439]
[1724036761325,0.09649716,2647.6,2647.2,2.6442]
[1724036762008,0.09649716,2647.6,2647.0,2.64442]
[1724036762221,0.09649716,2647.6,2647.1,2.64433]
[1724036762434,0.09649716,2647.6,2647.2,2.64429]
[1724036764125,0.09649716,2647.6,2647.0,2.64443]
[1724036764325,0.09649716,2647.6,2647.0,5.28886]
[1724036764524,0.09649716,2647.6,2647.1,2.64437]
[1724036766749,3.51290988,2647.6,2647.0,2.64443]
[1724036766970,2.64434,2647.2,2646.7,1.97137673]
[1724036767103,3.154674,2647.1,2646.5,1.97154838]
[1724036767300,2.6445,2647.0,2646.4,4.99734]
[1724036767717,0.09608147,2646.9,2646.4,4.99734]
[1724036768018,0.09608147,2646.9,2646.4,4.99733]
[1724036768263,2.6444,2647.1,2646.4,7.64236]
[1724036768462,0.09615227,2647.0,2646.6,2.64482]
[1724036768664,5.10265,2647.3,2646.6,5.28966]
[1724036768960,5.10265,2647.3,2646.6,2.64482]
[1724036768961,0.0961894,2647.2,2646.6,2.64482]
[1724036769255,0.0961894,2647.2,2646.7,2.2978]
[1724036769763,0.0961894,2647.2,2646.7,4.94258]
[1724036770730,0.0961894,2647.2,2646.8,2.64461]
[1724036770932,0.0961894,2647.2,2647.0,2.64444]
[1724036771260,0.09611557,2647.1,2647.0,2.64442]
[1724036771555,4.90864,2647.7,2646.8,2.64465]
[1724036771556,2.64402,2647.5,2646.8,5.28927]
[1724036771766,0.09611609,2647.1,2646.9,0.494245]
[1724036771921,2.2648,2647.3,2646.7,2.2978]
[1724036772121,0.0960453,2647.0,2646.7,2.2978]
[1724036772356,2.755697,2647.3,2646.7,2.2978]
[1724036772517,2.755697,2647.3,2646.7,4.94259]
[1724036772518,0.0959745,2646.9,2646.7,4.94259]
[1724036772718,2.6443,2647.2,2646.7,2.64479]
[1724036772915,2.6443,2647.2,2646.5,4.26925441]
[1724036772916,0.09599067,2646.8,2646.5,4.94272]
[1724036773261,0.09592757,2646.7,2646.5,4.94272]
[1724036773461,3.4487167,2647.2,2646.6,2.6449]
[1724036773663,0.71665213,2647.1,2646.6,2.6449]
[1724036774033,3.36106213,2647.1,2646.6,2.6449]
[1724036775066,0.71665213,2647.1,2646.6,2.6449]
[1724036775233,0.09621076,2647.1,2646.6,2.6449]
[1724036775429,2.6443,2647.2,2646.6,2.6449]
[1724036775631,0.09621076,2647.1,2646.7,2.64479]
[1724036775835,0.09621076,2647.1,2647.0,2.6445]
[1724036776041,2.2648,2647.5,2647.0,2.6445]
[1724036776227,0.09639223,2647.4,2647.0,2.6445]
[1724036776887,0.09639223,2647.4,2646.8,5.28926]
[1724036777056,0.09639223,2647.4,2646.9,2.64459]
[1724036780072,0.09639223,2647.4,2647.0,2.64449]
[1724036780428,4.90868,2647.7,2647.1,2.64438]
[1724036780781,0.09654096,2647.6,2647.1,2.64438]
[1724036781147,0.09654096,2647.6,2647.0,2.64449]
[1724036781343,3.50534806,2647.6,2647.0,2.64449]
[1724036782335,6.14934806,2647.6,2647.0,2.64449]
[1724036782747,2.64416,2647.4,2646.8,2.64465]
[1724036783080,0.36074466,2647.3,2646.8,2.64465]
[1724036783385,0.09632866,2647.3,2646.8,2.64465]
[1724036785389,0.09632866,2647.3,2646.9,2.64459]
[1724036785762,3.4088471,2647.6,2646.9,2.64459]
[1724036785950,0.09625788,2647.2,2646.9,2.64459]
[1724036786271,0.09618709,2647.1,2646.9,2.64459]
[1724036786616,3.21142471,2647.5,2646.9,2.64459]
[1724036786891,4.99011,2647.4,2646.9,2.64459]
[1724036787199,0.65207613,2647.3,2646.7,5.08395]
[1724036787403,0.65207613,2647.3,2646.8,2.64467]
[1724036788904,2.4397,2647.0,2646.5,5.28989]
[1724036789055,2.4397,2647.0,2646.5,2.64494]
[1724036789401,0.09605117,2646.9,2646.5,2.64494]
[1724036789555,0.09605117,2646.9,2646.5,5.28988]
[1724036789888,0.09584399,2646.8,2646.5,2.64494]
[1724036790070,5.91347586,2647.0,2646.5,2.64494]
[1724036790298,0.09591533,2646.9,2646.3,2.64512]
[1724036790453,2.6447,2646.8,2646.1,5.09892]
[1724036790650,2.2507,2646.6,2646.1,5.09892]
[1724036790863,0.09562538,2646.5,2646.1,5.09892]
[1724036791068,0.09562538,2646.5,2646.1,7.74426]
[1724036791368,0.09562538,2646.5,2646.2,2.64529]
[1724036791984,4.8954,2646.8,2646.2,2.64529]
[1724036792298,4.8954,2646.8,2646.1,5.09892]
[1724036792299,5.649394,2646.8,2646.1,5.09892]
[1724036792494,0.09575521,2646.7,2646.1,5.09892]
[1724036792867,2.2507,2646.4,2645.9,2.64559]
[1724036793557,4.89567,2646.6,2645.9,5.29112]
[1724036793755,4.89567,2646.6,2646.0,2.6455]
[1724036794184,4.89544,2646.8,2646.1,2.4536]
[1724036794511,2.64452,2647.0,2646.1,2.4536]
[1724036794512,0.09518596,2646.7,2646.4,2.64503]
[1724036794681,2.2507,2647.1,2646.5,2.909483]
[1724036794898,2.2507,2647.1,2646.3,2.64513]
[1724036794899,2.74022627,2647.0,2646.3,2.64513]
[1724036795082,2.74022627,2647.0,2646.4,2.64509]
[1724036795794,0.09572627,2647.0,2646.5,2.64499]
[1724036796000,0.09572627,2647.0,2646.5,5.09859]
[1724036797266,0.09572627,2647.0,2646.5,2.4536]
[1724036797656,0.8592589,2647.0,2646.5,2.4536]
[1724036799071,2.3213,2646.9,2646.0,1.97172805]
[1724036799316,2.64486,2646.7,2646.0,2.64544]
[1724036799467,2.64501,2646.5,2645.9,2.64553]
[1724036799667,2.64501,2646.5,2645.8,2.64562]
[1724036799668,3.4156817,2646.5,2645.8,2.64562]
[1724036799872,0.09546039,2646.4,2646.0,2.64542]
[1724036800096,2.3213,2646.6,2646.0,5.555362]
[1724036800410,0.09550809,2646.5,2646.0,2.6454]
[1724036800926,0.09550809,2646.5,2646.1,2.64538]
[1724036801220,0.09550809,2646.5,2646.2,2.64528]
[1724036802320,0.09550809,2646.5,2646.0,2.6454]
[1724036803895,0.6016709,2646.5,2646.0,2.6454]
[1724036804102,0.6016709,2646.5,2645.8,2.64561]
[1724036804103,5.04029,2646.4,2645.8,2.64561]
[1724036804718,0.09204768,2646.3,2645.8,2.64561]
[1724036805212,2.73724768,2646.3,2645.6,5.29169]
[1724036805438,2.73724768,2646.3,2645.6,2.64582]
[1724036805600,3.51500145,2646.3,2645.6,2.64582]
[1724036805923,3.51500145,2646.3,2645.7,2.64578]
[1724036806129,2.64547,2646.1,2645.4,2.64603]
[1724036806286,5.02076,2646.2,2645.4,5.29206]
[1724036806287,2.64551,2646.0,2645.4,5.29206]
[1724036806486,0.09188223,2645.9,2645.5,2.64593]
[1724036806709,3.15668945,2646.1,2645.5,2.64593]
[1724036806995,0.09201693,2646.0,2645.5,2.64593]
[1724036807211,2.3245,2645.9,2645.4,2.64603]
[1724036807396,2.41644608,2645.9,2645.4,2.64603]
[1724036807697,2.41644608,2645.9,2645.4,5.29206]
[1724036808137,2.41644608,2645.9,2645.4,2.64603]
[1724036808431,5.7020993,2645.9,2645.1,2.2559]
[1724036808600,5.7020993,2645.9,2645.3,2.64615]
[1724036809511,2.64574,2645.8,2645.2,2.64628]
[1724036809702,2.64574,2645.8,2645.3,2.64618]
[1724036809703,0.09158964,2645.7,2645.3,2.64618]
[1724036810288,0.0916057,2645.6,2645.3,2.64618]
[1724036810516,0.0916057,2645.6,2645.5,2.646]
[1724036810689,2.4592,2646.1,2645.5,2.646]
[1724036811239,0.09189291,2646.0,2645.5,2.646]
[1724036811732,0.09189291,2646.0,2645.5,5.29184]
[1724036811887,0.09189291,2646.0,2645.5,2.64592]
[1724036812084,0.6115432,2646.0,2645.5,2.64592]
[1724036812394,0.09189291,2646.0,2645.4,2.4572]
[1724036812588,0.09189291,2646.0,2645.7,5.29147]
[1724036812788,0.09189291,2646.0,2645.7,2.64573]
[1724036814003,0.09189291,2646.0,2645.9,2.6456]
[1724036814202,2.4592,2646.4,2645.9,2.6456]
[1724036814543,0.24592,2646.3,2645.9,2.6456]
[1724036814695,0.33797804,2646.3,2645.9,2.6456]
[1724036817432,0.09205804,2646.3,2645.9,2.6456]
[1724036821517,0.09205804,2646.3,2645.9,2.64553]
[1724036821717,9.93495,2646.6,2646.2,2.6453]
[1724036821718,7.29,2646.6,2646.2,2.6453]
[1724036821915,2.64471,2646.8,2646.2,2.6453]
[1724036822316,0.09223167,2646.7,2646.1,5.29068]
[1724036822551,5.20282584,2646.7,2646.1,2.64534]
[1724036822862,2.55800584,2646.7,2646.3,2.64513]
[1724036823018,0.09223167,2646.7,2646.3,2.64513]
[1724036823217,27.21015,2646.9,2646.3,2.64513]
[1724036823423,0.09222469,2646.6,2646.3,2.64513]
[1724036823753,27.21015,2646.9,2646.3,2.64513]
[1724036823908,0.0921379,2646.5,2646.3,2.64513]
[1724036824319,5.365725,2646.8,2646.1,2.64532]
[1724036824813,0.0921838,2646.7,2646.1,2.64532]
[1724036825663,0.0921838,2646.7,2645.8,0.07557428]
[1724036825960,0.0921838,2646.7,2646.5,5.12862]
[1724036826123,2.4464,2647.1,2646.6,2.6449]
[1724036826307,5.09081,2647.1,2646.6,2.6449]
[1724036826512,1.238081,2647.0,2646.6,2.6449]
[1724036828263,2.64441,2647.1,2646.6,2.6449]
[1724036829161,0.09251202,2647.0,2646.6,2.6449]
[1724036829488,0.09251202,2647.0,2646.7,0.07556458]
[1724036829639,0.09251202,2647.0,2646.9,5.2892]
[1724036829824,0.09251202,2647.0,2646.8,2.4837]
[1724036829825,7.29,2647.6,2647.2,2.64423]
[1724036830022,2.4464,2647.7,2647.2,5.12793]
[1724036830326,0.24464,2647.6,2647.2,5.12793]
[1724036832718,0.09256179,2647.5,2647.2,5.12793]
[1724036832924,0.09256179,2647.5,2647.0,2.64445]
[1724036832925,2.44356179,2647.5,2647.0,2.64445]
[1724036835786,2.44356179,2647.5,2647.0,5.28888]
[1724036835997,2.95229797,2647.5,2647.0,2.64443]
[1724036836289,2.95229797,2647.5,2646.9,4.99288]
[1724036836490,5.59638797,2647.5,2646.8,2.64466]
[1724036836652,0.2952298,2647.4,2646.8,2.64463]
[1724036836853,0.38787774,2647.4,2646.8,5.28926]
[1724036837074,0.38787774,2647.4,2646.9,2.64459]
[1724036838297,0.09264794,2647.4,2647.0,2.64442]
[1724036838652,4.90694,2647.7,2647.0,2.64442]
[1724036839897,4.90694,2647.7,2647.0,5.28885]
[1724036840091,7.55082,2647.7,2647.0,2.64442]
[1724036840257,2.73666167,2647.6,2647.0,2.64442]
[1724036840590,0.76436017,2647.5,2647.0,2.64442]
[1724036840751,0.85705106,2647.5,2647.0,2.64442]
[1724036840951,0.85705106,2647.5,2647.0,5.28885]
[1724036841354,0.85705106,2647.5,2647.0,2.64442]
[1724036842669,3.50113106,2647.5,2646.9,2.3673]
[1724036842868,0.35011311,2647.4,2646.9,2.3673]
[1724036843379,0.09254319,2647.3,2646.9,2.3673]
[1724036845814,0.09254319,2647.3,2646.6,2.64484]
[1724036845815,5.05865319,2647.3,2646.7,2.64477]
[1724036846003,2.41444319,2647.3,2646.7,2.64477]
[1724036846300,0.50585532,2647.2,2646.7,2.64477]
[1724036846697,0.09271241,2647.1,2646.8,2.64467]
[1724036846857,0.09271241,2647.1,2646.8,5.12427]
[1724036847056,2.3667,2647.5,2646.8,5.12427]
[1724036847252,0.09255567,2647.0,2646.8,7.7689]
[1724036847491,2.64413,2647.4,2646.8,7.7689]
[1724036847492,3.145193,2647.4,2646.8,7.7689]
[1724036847696,0.09248076,2646.9,2646.8,5.12423]
[1724036847908,0.501063,2647.4,2646.9,2.6446]
[1724036848069,9.6567,2647.5,2647.1,2.64437]
[1724036848455,9.6567,2647.5,2646.9,2.6446]
[1724036848456,9.6567,2647.5,2646.9,5.28912]
[1724036848657,1.230062,2647.4,2646.9,2.64452]
[1724036849117,1.230062,2647.4,2647.0,2.64444]
[1724036849289,9.6567,2647.5,2647.1,2.6444]
[1724036849454,7.29,2647.5,2647.1,2.6444]
[1724036849889,7.29,2647.5,2647.1,5.28874]
[1724036850294,0.09274723,2647.4,2647.1,5.28874]
[1724036850800,0.09274723,2647.4,2647.1,5.28866]
[1724036851295,0.09267644,2647.3,2647.1,5.28866]
[1724036851486,0.09267644,2647.3,2647.1,2.64432]
[1724036851684,5.00462,2647.7,2647.1,2.64432]
[1724036851889,0.09260564,2647.2,2647.1,2.64432]
[1724036852074,5.00462,2647.7,2647.1,2.64432]
[1724036852279,0.09261231,2647.2,2647.1,2.64432]
[1724036852467,1.493837,2647.6,2647.1,2.64432]
[1724036852670,0.0925804,2647.2,2647.1,2.64432]
[1724036852883,1.493837,2647.6,2647.1,2.64432]
[1724036853179,0.09261231,2647.2,2647.1,2.64432]
[1724036853361,1.493837,2647.6,2647.1,2.64432]
[1724036853567,0.09261231,2647.2,2647.1,2.64432]
[1724036853800,1.493837,2647.6,2647.1,2.64432]
[1724036854010,0.09261231,2647.2,2647.1,2.64432]
[1724036854256,0.6498457,2647.5,2647.1,2.64432]
[1724036854476,0.09261231,2647.2,2647.1,2.64432]
[1724036854621,5.00462,2647.7,2647.1,2.64432]
[1724036854803,0.09261231,2647.2,2647.1,2.64432]
[1724036855003,5.00462,2647.7,2647.1,2.64432]
[1724036855258,0.09261231,2647.2,2647.1,2.64432]
[1724036855435,5.00462,2647.7,2647.1,2.64432]
[1724036855747,0.09261231,2647.2,2647.1,2.64432]
[1724036855951,5.00462,2647.7,2647.1,2.64432]
[1724036856155,0.09261231,2647.2,2647.1,2.64432]
[1724036856361,1.493837,2647.6,2647.1,2.64432]
[1724036856557,0.0925804,2647.2,2647.1,2.64432]